bitfinex/quotes_SOLUSD_20260304
["timestamp","ask_amount","ask_price","bid_price","bid_amount"]
[1772639924255,1.50777354,93.089,93.028,4.37942899]
[1772639924877,1.50777354,93.059,93.013,35.28754339]
[1772639925071,0.28432314,93.058,92.954,1.07580093]
[1772639925379,0.28432314,93.019,92.954,27.13622851]
[1772639925564,1.50777354,93.016,92.954,27.13622851]
[1772639925882,1.79209668,93.009,92.927,4.37942899]
[1772639926180,1.79209668,93.009,92.898,21.70898281]
[1772639926181,1.79209668,92.989,92.899,4.37942899]
[1772639926479,1.50777354,93.004,92.903,4.37942899]
[1772639926667,1.50777354,93.002,92.903,4.37942899]
[1772639927161,1.50777354,92.999,92.903,4.37942899]
[1772639927361,1.50777354,92.999,92.9,21.90898281]
[1772639927362,1.50777354,92.999,92.905,4.37942899]
[1772639927580,37.62793497,93.016,92.915,4.37942899]
[1772639927754,1.50777354,93.015,92.925,4.37942899]
[1772639927960,1.50777354,93.009,92.925,4.37942899]
[1772639929077,10.74956732,93.027,92.925,4.37942899]
[1772639929282,10.74956732,93.027,92.909,209.88278849]
[1772639929283,10.74956732,93.027,92.935,4.12749219]
[1772639929474,42.98428173,93.058,92.94,4.41181533]
[1772639929782,8.61245934,93.04,92.94,4.41181533]
[1772639930076,42.98428173,93.058,92.94,4.12749219]
[1772639930077,1.50777354,93.009,92.94,4.12749219]
[1772639930868,8.61245934,93.0,92.94,4.12749219]
[1772639931074,1.50777354,92.999,92.94,4.12749219]
[1772639931663,37.63521795,92.998,92.942,4.12749219]
[1772639932687,1.50777354,93.032,92.946,4.12749219]
[1772639932861,1.50777354,93.025,92.946,4.12749219]
[1772639933562,1.50777354,93.019,92.948,4.12749219]
[1772639933762,1.50777354,93.009,92.948,4.12749219]
[1772639934160,80.624355,93.024,92.948,4.12749219]
[1772639934161,8.61245934,93.02,92.948,4.12749219]
[1772639934480,1.50777354,93.022,92.948,4.12749219]
[1772639934687,1.50777354,93.019,92.948,4.12749219]
[1772639935375,10.749914,93.024,92.951,4.12749219]
[1772639935976,1.50777354,93.038,92.952,37.65384284]
[1772639936276,1.50777354,93.038,92.953,4.12749219]
[1772639936787,1.50777354,93.029,92.953,4.12749219]
[1772639937584,1.50777354,93.017,92.921,4.12749219]
[1772639937971,1.50777354,93.017,92.925,4.12749219]
[1772639938175,4.13421924,93.08,92.937,4.12749219]
[1772639938376,4.13421924,93.08,92.963,4.12749219]
[1772639938566,8.61245934,93.09,92.977,4.12749219]
[1772639938567,4.13421924,93.079,92.977,4.12749219]
[1772639938772,4.13421924,93.069,92.977,4.12749219]
[1772639939794,4.13421924,93.069,92.987,4.12749219]
[1772639940194,4.13421924,93.067,92.992,4.12749219]
[1772639940494,4.13421924,93.067,92.993,0.28432314]
[1772639940715,4.13421924,93.102,93.014,4.12749219]
[1772639940866,4.13421924,93.102,93.027,4.12749219]
[1772639941571,4.13421924,93.099,93.013,4.12749219]
[1772639941765,0.14216157,93.096,93.013,4.12749219]
[1772639941990,4.13421924,93.089,93.013,4.12749219]
[1772639942185,4.13421924,93.083,93.014,37.62874405]
[1772639942405,4.13421924,93.079,93.014,10.75106973]
[1772639942866,4.13421924,93.079,93.014,37.62874405]
[1772639943061,4.13421924,93.079,93.015,4.12749219]
[1772639943687,4.13421924,93.063,92.999,26.88177293]
[1772639943892,4.13421924,93.059,92.999,26.88177293]
[1772639944378,4.13421924,93.057,93.0,4.12749219]
[1772639944989,0.14216157,93.046,92.971,10.7560422]
[1772639945191,9.97503369,93.05,92.971,10.7560422]
[1772639945192,4.13421924,93.043,92.976,4.12749219]
[1772639946077,4.13421924,93.058,92.979,4.12749219]
[1772639946404,4.13421924,93.058,92.978,3.69383402]
[1772639946405,4.13421924,93.058,92.987,4.12749219]
[1772639946869,10.74610185,93.057,92.987,4.12749219]
[1772639947192,4.13421924,93.056,92.987,4.12749219]
[1772639948186,4.13421924,93.056,92.988,91.40964424]
[1772639948386,4.13421924,93.056,92.992,4.12749219]
[1772639949298,4.13421924,93.069,93.007,0.28432314]
[1772639949473,4.13421924,93.069,93.008,4.12749219]
[1772639949974,4.13421924,93.069,92.992,4.12749219]
[1772639950172,4.13421924,93.067,92.994,4.12749219]
[1772639950371,4.13421924,93.063,92.993,37.6372415]
[1772639950606,4.13421924,93.063,92.994,4.12749219]
[1772639951205,37.60691106,93.068,92.993,37.6372415]
[1772639951206,0.28432314,93.06,92.993,37.6372415]
[1772639951389,4.13421924,93.049,92.993,10.75349757]
[1772639951910,4.13421924,93.049,92.944,53.79583405]
[1772639952099,4.13421924,93.039,92.945,4.12749219]
[1772639952288,4.13421924,93.037,92.95,4.12749219]
[1772639952610,4.13421924,93.029,92.95,4.12749219]
[1772639952792,4.13421924,93.019,92.95,4.12749219]
[1772639953282,4.13421924,93.019,92.946,37.65627352]
[1772639953782,4.13421924,93.013,92.946,37.65627352]
[1772639954103,4.13421924,93.003,92.946,37.65627352]
[1772639954322,166.59859411,93.038,92.908,4.12749219]
[1772639954323,4.13421924,92.997,92.908,4.12749219]
[1772639954517,4.13421924,92.997,92.91,3.69383402]
[1772639954821,4.13421924,92.997,92.911,4.12749219]
[1772639955695,4.13421924,92.997,92.903,145.31285317]
[1772639955696,4.13421924,92.997,92.92,0.28432314]
[1772639955888,4.13421924,92.997,92.927,4.12749219]
[1772639956389,26.87832877,93.012,92.918,0.28432314]
[1772639956390,4.13421924,92.995,92.929,4.12749219]
[1772639956828,4.13421924,92.993,92.928,37.66356748]
[1772639957018,0.28432314,92.994,92.928,10.76101928]
[1772639957019,4.13421924,92.983,92.928,10.76101928]
[1772639957300,4.13421924,92.983,92.915,10.76252488]
[1772639957682,4.13421924,92.983,92.915,37.6688371]
[1772639957881,4.13421924,92.973,92.915,10.76252488]
[1772639958313,4.13421924,92.971,92.902,26.90993876]
[1772639958509,4.29400866,92.956,92.9,10.96417804]
[1772639958713,10.75592651,92.972,92.901,4.07169175]
[1772639958893,4.25106857,92.971,92.901,4.07169175]
[1772639959088,4.25106857,92.971,92.9,37.67491926]
[1772639959089,4.25106857,92.967,92.9,37.67491926]
[1772639959294,4.25106857,92.967,92.901,4.07169175]
[1772639960407,4.25106857,92.982,92.903,4.07169175]
[1772639960607,4.25106857,92.982,92.906,4.35601489]
[1772639961131,10.75462134,92.984,92.911,4.07169175]
[1772639961412,4.25106857,93.009,92.917,4.07169175]
[1772639961711,4.25106857,93.009,92.91,4.19383402]
[1772639961712,4.25106857,93.021,92.928,4.07169175]
[1772639961903,4.25106857,93.021,92.938,4.07169175]
[1772639962313,26.871929,93.034,92.938,4.07169175]
[1772639962314,10.74962049,93.027,92.944,4.35601489]
[1772639962621,4.25106857,93.044,92.951,4.35601489]
[1772639962824,4.53539171,93.039,92.951,4.07169175]
[1772639962993,4.25106857,93.039,92.951,4.07169175]
[1772639963716,4.25106857,93.033,92.951,4.07169175]
[1772639964300,4.25106857,93.031,92.953,4.46790693]
[1772639965413,42.9838754,93.059,92.952,37.65384284]
[1772639965414,4.25106857,93.042,92.958,4.46790693]
[1772639965625,4.25106857,93.042,92.957,0.28432314]
[1772639965626,4.25106857,93.042,92.96,4.46790693]
[1772639965920,4.25106857,93.039,92.96,4.46790693]
[1772639966115,4.25106857,93.033,92.96,4.46790693]
[1772639966293,4.25106857,93.031,92.962,4.46790693]
[1772639966613,4.25106857,93.029,92.962,4.46790693]
[1772639966804,4.25106857,93.023,92.962,4.46790693]
[1772639967203,4.25106857,93.031,92.962,4.46790693]
[1772639968098,4.25106857,93.029,92.961,37.65019738]
[1772639968511,4.25106857,93.019,92.961,10.75719925]
[1772639968817,4.25106857,93.009,92.961,10.75719925]
[1772639969023,4.25106857,92.999,92.956,18.34635011]
[1772639969394,4.25106857,92.999,92.956,29.10403999]
[1772639969619,4.25106857,92.999,92.956,18.34635011]
[1772639969915,4.20855788,92.989,92.956,18.26089933]
[1772639970413,4.1664723,92.983,92.879,4.46790693]
[1772639970612,4.1664723,92.939,92.879,10.76665574]
[1772639971122,4.1664723,92.939,92.86,0.2]
[1772639971123,4.12480757,92.919,92.86,0.15833527]
[1772639971303,4.08355949,92.913,92.86,4.6262422]
[1772639971705,4.08355949,92.913,92.862,4.46790693]
[1772639972518,4.08355949,92.911,92.863,10.76855152]
[1772639972721,4.08355949,92.911,92.86,0.15833527]
[1772639972924,10.76287239,92.912,92.86,0.15833527]
[1772639972925,4.08355949,92.909,92.86,0.15833527]
[1772639973221,3.58355949,92.909,92.86,0.15833527]
[1772639973407,10.76287239,92.912,92.862,4.46790693]
[1772639973820,9.97503369,92.91,92.862,4.46790693]
[1772639974730,37.67126973,92.909,92.86,0.15833527]
[1772639975126,3.58855949,92.908,92.861,10.76878345]
[1772639975319,96.85542712,92.922,92.86,0.15833527]
[1772639975528,0.28432314,92.919,92.861,10.76878345]
[1772639975708,37.66599943,92.922,92.862,4.46790693]
[1772639976026,10.76171412,92.922,92.862,4.46790693]
[1772639976231,3.58855949,92.921,92.862,4.46790693]
[1772639976409,10.76080847,92.93,92.862,4.46790693]
[1772639976610,3.58855949,92.959,92.864,4.46790693]
[1772639976813,3.58855949,92.954,92.864,4.46790693]
[1772639977222,3.58855949,92.954,92.868,4.46790693]
[1772639977614,3.58855949,92.949,92.868,4.46790693]
[1772639977926,3.58855949,92.939,92.868,4.46790693]
[1772639978722,3.58855949,92.953,92.87,4.46790693]
[1772639979427,3.58855949,92.953,92.869,80.75891846]
[1772639979428,3.58855949,92.953,92.873,4.46790693]
[1772639979828,3.58855949,92.957,92.877,4.46790693]
[1772639980420,10.75654777,92.967,92.877,4.46790693]
[1772639980714,10.7567364,92.965,92.887,4.46790693]
[1772639981512,41.2371369,92.965,92.887,4.46790693]
[1772639981734,3.58855949,92.964,92.887,4.46790693]
[1772639982836,3.58855949,92.959,92.889,4.46790693]
[1772639984709,3.58855949,92.959,92.872,3.69383402]
[1772639984710,10.75754641,92.958,92.891,4.46790693]
[1772639985332,3.58855949,92.984,92.896,4.75223007]
[1772639985529,3.58855949,92.989,92.896,4.75223007]
[1772639985726,3.58855949,92.979,92.896,4.46790693]
[1772639985927,3.58855949,92.969,92.896,4.46790693]
[1772639986927,3.58855949,92.967,92.898,4.46790693]
[1772639987132,10.75638929,92.968,92.898,4.46790693]
[1772639987932,14.34494878,92.968,92.898,4.46790693]
[1772639988115,3.58855949,92.978,92.898,4.46790693]
[1772639989117,3.58855949,92.978,92.891,43.06108405]
[1772639989118,10.75534809,92.977,92.9,4.33142375]
[1772639989321,9.97503369,93.0,92.899,134.55473146]
[1772639989322,42.99919376,93.025,92.903,4.33142375]
[1772639989519,3.58855949,93.004,92.903,4.61574689]
[1772639989921,3.58855949,92.999,92.903,4.61574689]
[1772639990842,3.58855949,92.989,92.903,4.33142375]
[1772639991342,3.58855949,92.987,92.907,4.33142375]
[1772639992742,10.75407579,92.988,92.907,4.33142375]
[1772639992921,3.58855949,92.987,92.907,4.33142375]
[1772639993323,3.58855949,92.985,92.909,4.33142375]
[1772639995340,3.58855949,92.983,92.911,4.33142375]
[1772639996835,3.58855949,92.969,92.911,4.33142375]
[1772639997633,3.58855949,92.967,92.913,4.33142375]
[1772639998040,10.75638929,92.968,92.913,4.33142375]
[1772639998847,3.58855949,92.967,92.913,4.33142375]
[1772639999389,3.58855949,92.976,92.913,4.33142375]
[1772640002947,3.58855949,92.969,92.863,4.61574689]
[1772640003150,3.58855949,92.969,92.873,4.33142375]
[1772640003654,3.58855949,92.963,92.873,4.33142375]
[1772640003862,3.58855949,92.939,92.873,4.33142375]
[1772640004349,3.58855949,92.919,92.861,10.76878345]
[1772640004546,3.58855949,92.917,92.862,4.33142375]
[1772640004928,3.58855949,92.909,92.86,10.92719038]
[1772640005249,3.58855949,92.899,92.86,0.15833527]
[1772640005437,3.58855949,92.899,92.86,0.12208719]
[1772640005838,3.55267389,92.879,92.837,14.93337724]
[1772640006038,3.51714715,92.869,92.837,14.8978505]
[1772640006230,3.51714715,92.869,92.802,4.33142375]
[1772640006646,3.48197567,92.867,92.804,4.33142375]
[1772640007151,10.76681237,92.878,92.804,4.33142375]
[1772640007358,9.99797663,92.9,92.803,134.69392152]
[1772640007359,3.48197567,92.907,92.813,4.47358532]
[1772640007563,3.48197567,92.907,92.813,4.61574689]
[1772640007734,177.53580301,92.939,92.768,6.99334933]
[1772640007735,3.48197567,92.919,92.832,4.33142375]
[1772640007936,3.48197567,92.938,92.848,4.33142375]
[1772640008136,3.48197567,92.938,92.864,4.33142375]
[1772640008335,10.75974563,92.939,92.868,4.33142375]
[1772640008658,3.48197567,92.971,92.888,4.33142375]
[1772640009432,3.48197567,92.971,92.898,4.33142375]
[1772640009638,3.48197567,92.982,92.908,4.33142375]
[1772640009834,3.48197567,93.042,92.92,0.14216157]
[1772640010059,3.48197567,93.042,92.945,4.33142375]
[1772640010253,37.61418591,93.05,92.935,0.14216157]
[1772640010254,3.48197567,93.039,92.957,4.33142375]
[1772640010554,3.48197567,93.037,92.959,4.33142375]
[1772640011363,3.48197567,93.029,92.959,4.33142375]
[1772640012357,10.74829639,93.038,92.967,4.33142375]
[1772640012562,10.74829639,93.038,92.969,4.33142375]
[1772640012743,3.48197567,93.056,92.979,4.33142375]
[1772640013060,6.67537822,93.075,92.978,0.28432314]
[1772640013061,3.48197567,93.068,92.987,4.33142375]
[1772640013255,3.48197567,93.061,92.987,4.33142375]
[1772640013456,6.67537822,93.075,93.006,4.33142375]
[1772640013647,3.48197567,93.061,93.008,4.33142375]
[1772640013837,3.48197567,93.086,93.008,4.33142375]
[1772640014034,10.74552448,93.062,93.008,4.33142375]
[1772640014440,3.48197567,93.059,92.976,0.14216157]
[1772640014655,10.74552448,93.062,92.979,4.33142375]
[1772640014656,3.48197567,93.049,92.979,4.33142375]
[1772640015844,3.48197567,93.039,92.979,4.33142375]
[1772640016446,3.48197567,93.051,92.979,4.33142375]
[1772640016651,3.48197567,93.049,92.981,4.33142375]
[1772640016951,3.48197567,93.049,92.98,37.64250375]
[1772640017156,3.48197567,93.039,92.98,10.75500107]
[1772640017363,3.48197567,93.039,92.981,4.33142375]
[1772640017954,37.61418591,93.05,92.981,4.33142375]
[1772640018258,37.61418591,93.05,92.98,37.64250375]
[1772640018259,3.48197567,93.061,92.987,4.33142375]
[1772640018438,3.48197567,93.059,92.987,4.33142375]
[1772640018640,3.48197567,93.048,92.989,4.14031879]
[1772640019044,10.74702576,93.049,92.989,4.14031879]
[1772640020665,26.86704894,93.051,92.991,4.14031879]
[1772640021048,30.34902461,93.051,92.991,4.14031879]
[1772640021240,3.48197567,93.05,92.991,4.14031879]
[1772640021445,3.48197567,93.049,92.991,4.14031879]
[1772640022056,10.74587089,93.059,92.957,4.14031879]
[1772640022257,3.48197567,93.058,92.974,4.42464193]
[1772640022661,10.74610185,93.057,92.976,4.42464193]
[1772640022863,1.18377874,93.063,92.985,4.42464193]
[1772640023066,37.59438876,93.099,93.004,4.14031879]
[1772640023360,37.59438876,93.099,92.986,1.0754307]
[1772640023361,9.99797663,93.09,93.018,4.14031879]
[1772640023568,3.48197567,93.089,93.018,4.14031879]
[1772640023764,37.59438876,93.099,93.018,4.14031879]
[1772640024065,3.48197567,93.098,93.018,4.14031879]
[1772640024251,9.99797663,93.11,92.995,3.69383402]
[1772640024252,3.48197567,93.11,93.028,4.45531581]
[1772640024456,10.74125393,93.099,93.036,4.45531581]
[1772640024668,3.48197567,93.122,93.016,3.69383402]
[1772640024669,26.84953607,93.112,93.038,4.45531581]
[1772640024864,3.48197567,93.11,93.038,4.45531581]
[1772640025852,10.73871629,93.121,93.041,4.45531581]
[1772640026055,3.48197567,93.111,93.043,4.45531581]
[1772640026555,3.58197567,93.1,93.043,4.45531581]
[1772640026764,3.48197567,93.098,93.044,15.20291909]
[1772640026972,10.74125393,93.099,93.045,4.45531581]
[1772640027180,26.84563393,93.126,93.048,4.45531581]
[1772640027396,0.1,93.14,93.057,4.45531581]
[1772640027680,0.1,93.14,93.071,4.45531581]
[1772640027681,10.73664093,93.139,93.071,4.45531581]
[1772640028252,10.73664093,93.139,93.076,4.45531581]
[1772640028568,10.73664093,93.139,93.08,4.45531581]
[1772640028875,0.1,93.14,93.082,4.45531581]
[1772640029461,3.48197567,93.139,93.082,4.45531581]
[1772640030072,0.1,93.14,93.082,4.45531581]
[1772640030449,3.48197567,93.139,93.082,4.45531581]
[1772640030850,3.48197567,93.137,93.083,10.74310024]
[1772640031055,3.48197567,93.135,93.083,10.74310024]
[1772640031263,3.48197567,93.109,93.053,4.45531581]
[1772640032282,3.48197567,93.105,93.053,4.45531581]
[1772640032480,263.05052714,93.138,93.026,4.45531581]
[1772640032481,3.48197567,93.087,93.026,4.45531581]
[1772640032649,3.69383402,93.135,93.026,4.45531581]
[1772640032650,3.48197567,93.085,93.026,4.45531581]
[1772640032856,3.48197567,93.083,93.027,15.20488313]
[1772640033055,3.48197567,93.083,93.028,4.45531581]
[1772640033671,3.48197567,93.075,92.98,4.45531581]
[1772640033876,3.48197567,93.069,92.982,3.69383402]
[1772640034080,3.48197567,93.069,92.983,4.45531581]
[1772640034262,3.48197567,93.059,92.983,4.45531581]
[1772640034581,3.48197567,93.039,92.983,4.45531581]
[1772640034781,3.48197567,93.039,92.95,43.03375029]
[1772640034782,41.10101304,93.038,92.985,4.45531581]
[1772640035363,37.61903737,93.038,92.985,4.45531581]
[1772640035559,10.74829639,93.038,92.985,4.45531581]
[1772640036560,37.61903737,93.038,92.985,4.45531581]
[1772640036769,3.48197567,93.035,92.986,10.75430709]
[1772640037152,3.48197567,93.035,92.986,15.2096229]
[1772640037368,3.48197567,93.035,92.987,4.45531581]
[1772640037579,14.23050312,93.036,92.987,4.45531581]
[1772640037758,3.48197567,93.035,92.987,4.45531581]
[1772640038157,3.48197567,93.035,92.951,86.06652252]
[1772640038158,3.76629881,93.029,92.933,4.45531581]
[1772640038357,37.61984607,93.036,92.937,4.45531581]
[1772640038562,10.74852745,93.036,92.939,4.45531581]
[1772640038792,10.74852745,93.036,92.948,0.28432314]
[1772640038964,3.48197567,93.035,92.949,4.45531581]
[1772640039979,10.74852745,93.036,92.949,4.45531581]
[1772640040480,42.95654557,93.118,92.966,4.45531581]
[1772640040796,0.28432314,93.098,92.995,4.45531581]
[1772640040965,3.48197567,93.089,92.995,4.45531581]
[1772640041569,3.48197567,93.087,92.995,4.45531581]
[1772640041772,3.48197567,93.085,92.995,4.45531581]
[1772640042367,3.48197567,93.081,92.995,4.45531581]
[1772640042669,3.76629881,93.069,92.995,4.45531581]
[1772640042876,0.28432314,93.067,92.997,4.45531581]
[1772640043078,3.76629881,93.067,92.997,4.45531581]
[1772640043492,3.48197567,93.067,92.997,4.45531581]
[1772640044572,37.60691106,93.068,92.997,4.45531581]
[1772640045387,3.48197567,93.067,92.999,4.45531581]
[1772640045684,3.48197567,93.059,92.999,4.45531581]
[1772640045874,26.86207933,93.068,92.999,4.45531581]
[1772640046764,26.86207933,93.068,93.002,4.45531581]
[1772640047361,10.74367734,93.078,93.002,4.45531581]
[1772640047586,10.74160006,93.096,93.007,4.73963895]
[1772640048286,10.74160006,93.096,93.003,263.43236235]
[1772640048287,10.74021566,93.108,93.019,4.45531581]
[1772640048579,3.48197567,93.107,93.019,4.45531581]
[1772640048968,3.48197567,93.105,93.019,4.45531581]
[1772640049475,10.74067709,93.104,93.024,4.3749562]
[1772640049874,10.73790911,93.128,93.04,4.3749562]
[1772640050073,42.93552056,93.163,93.05,4.3749562]
[1772640050074,10.73664093,93.139,93.05,4.3749562]
[1772640050275,3.48197567,93.138,93.05,4.3749562]
[1772640050978,10.73664093,93.139,93.06,4.3749562]
[1772640051480,3.48197567,93.15,93.065,4.65927934]
[1772640051788,10.73487072,93.155,93.07,4.3749562]
[1772640051974,3.48197567,93.154,93.07,4.3749562]
[1772640052577,3.76629881,93.149,93.07,4.3749562]
[1772640052891,3.76629881,93.139,93.07,4.3749562]
[1772640053075,3.48197567,93.154,93.07,4.3749562]
[1772640053585,3.48197567,93.154,93.061,263.2681789]
[1772640053586,3.48197567,93.153,93.075,4.3749562]
[1772640054991,3.48197567,93.153,93.076,0.28432314]
[1772640055195,3.48197567,93.153,93.079,4.3749562]
[1772640055488,10.73341419,93.167,93.084,4.3749562]
[1772640055791,10.73226225,93.177,93.086,4.3749562]
[1772640055980,3.48197567,93.176,93.092,4.3749562]
[1772640056177,3.48197567,93.169,93.092,4.3749562]
[1772640056376,3.48197567,93.159,93.092,4.3749562]
[1772640056581,3.48197567,93.159,93.08,37.60206273]
[1772640056582,3.76629881,93.149,93.08,37.60206273]
[1772640056777,3.76629881,93.139,93.081,4.3749562]
[1772640056989,3.48197567,93.144,93.084,4.3749562]
[1772640057489,10.73617985,93.143,93.086,4.3749562]
[1772640057788,14.21815552,93.143,93.086,4.3749562]
[1772640057982,3.48197567,93.142,93.086,4.3749562]
[1772640058189,3.48197567,93.136,93.085,10.74286942]
[1772640058388,3.48197567,93.136,93.074,4.3749562]
[1772640058579,3.48197567,93.136,93.075,37.60408272]
[1772640058781,37.57662948,93.143,93.06,4.3749562]
[1772640058782,3.76629881,93.129,93.06,4.3749562]
[1772640059085,9.99797663,93.13,93.06,4.3749562]
[1772640059086,3.76629881,93.119,93.06,4.3749562]
[1772640059414,3.76629881,93.119,93.048,37.61499441]
[1772640059415,3.76629881,93.109,93.048,10.74714126]
[1772640059594,3.76629881,93.099,93.026,10.74968288]
[1772640059891,123.51248011,93.108,93.026,10.74968288]
[1772640059892,3.76629881,93.089,93.027,4.3749562]
[1772640060201,3.48197567,93.085,93.027,4.3749562]
[1772640060602,3.48197567,93.085,92.989,43.01557817]
[1772640060603,3.76629881,93.069,93.004,4.3749562]
[1772640060893,3.76629881,93.059,93.004,4.3749562]
[1772640061596,3.76629881,93.057,93.006,4.3749562]
[1772640062096,3.76629881,93.049,92.991,15.12864919]
[1772640062295,3.76629881,93.049,92.992,4.3749562]
[1772640063185,37.6109523,93.058,92.959,4.3749562]
[1772640063186,3.76629881,93.019,92.959,4.3749562]
[1772640063387,209.54673426,93.058,92.93,0.2]
[1772640063388,3.48197567,93.005,92.952,10.7581906]
[1772640063611,0.28432314,93.002,92.947,4.3749562]
[1772640063810,37.63278998,93.004,92.93,0.2]
[1772640063811,3.48197567,92.995,92.932,4.3749562]
[1772640063980,3.76629881,92.989,92.931,10.76067189]
[1772640064181,3.48197567,92.969,92.93,0.2]
[1772640064408,0.28432314,92.989,92.93,0.2]
[1772640064409,3.66288064,92.959,92.93,0.0955372]
[1772640064584,3.28397567,92.945,92.91,0.16682852]
[1772640064991,3.53545905,92.939,92.91,0.13398876]
[1772640065613,3.50294769,92.937,92.871,4.3749562]
[1772640065783,3.50294769,92.937,92.824,8.56211915]
[1772640065784,3.21862455,92.919,92.874,10.76719116]
[1772640066501,3.21862455,92.919,92.838,43.08572897]
[1772640066502,3.21862455,92.919,92.882,10.7663487]
[1772640066807,3.21862455,92.919,92.875,10.76715491]
[1772640067101,3.21862455,92.919,92.812,43.0977595]
[1772640067102,0.28432314,92.909,92.877,0.81453663]
[1772640067306,3.34520304,92.908,92.877,0.78361865]
[1772640067679,9.98470915,92.9,92.877,0.78361865]
[1772640067986,3.28429152,92.889,92.842,10.7709241]
[1772640068181,3.28429152,92.879,92.813,4.3749562]
[1772640068389,3.28429152,92.879,92.812,26.93590228]
[1772640068390,3.28429152,92.879,92.801,15.15070215]
[1772640068391,3.28429152,92.859,92.801,15.15070215]
[1772640068703,0.28432314,92.879,92.8,0.1099979]
[1772640068704,2.91086631,92.844,92.8,0.1099979]
[1772640069278,0.28432314,92.829,92.768,4.3749562]
[1772640069592,3.69383402,92.827,92.724,4.3749562]
[1772640069790,10.65056548,92.83,92.695,43.15189776]
[1772640069791,37.70535954,92.825,92.729,4.49999999]
[1772640069979,0.28432314,92.819,92.729,4.49999999]
[1772640070380,0.28432314,92.809,92.729,4.49999999]
[1772640070803,0.28432314,92.769,92.682,4.49999999]
[1772640071299,0.28432314,92.769,92.685,4.49999999]
[1772640071502,0.28432314,92.759,92.685,4.49999999]
[1772640071690,0.28432314,92.757,92.687,4.49999999]
[1772640071886,0.28432314,92.749,92.687,4.49999999]
[1772640072084,0.28432314,92.739,92.687,4.49999999]
[1772640072287,0.28432314,92.739,92.632,91.56124383]
[1772640072288,0.28432314,92.749,92.677,10.50661261]
[1772640072289,0.28432314,92.699,92.677,10.50661261]
[1772640072520,0.28432314,92.699,92.594,43.19902623]
[1772640072521,0.28432314,92.689,92.631,5.63383334]
[1772640072815,0.28432314,92.659,92.585,4.49999999]
[1772640073001,0.28432314,92.629,92.585,4.49999999]
[1772640073205,0.28432314,92.639,92.585,4.49999999]
[1772640073408,0.28432314,92.609,92.58,113.8184022]
[1772640073591,9.98470915,92.6,92.58,34.65428991]
[1772640073913,9.98470915,92.63,92.58,34.65428991]
[1772640074290,4.82477569,92.64,92.58,34.65428991]
[1772640074585,10.79354114,92.648,92.58,34.65428991]
[1772640074586,10.79354114,92.648,92.581,15.30135231]
[1772640074786,9.98470915,92.63,92.58,34.65428991]
[1772640074990,4.82477569,92.644,92.58,34.65428991]
[1772640075220,3.69383402,92.645,92.58,34.65428991]
[1772640075396,9.98470915,92.62,92.58,34.65428991]
[1772640075717,10.79458975,92.639,92.582,4.49999999]
[1772640075898,0.28432314,92.638,92.583,10.80111899]
[1772640076219,0.28432314,92.638,92.58,34.65428991]
[1772640076515,0.28432314,92.619,92.58,34.65428991]
[1772640076818,37.78106412,92.639,92.58,34.65428991]
[1772640076819,0.14216157,92.629,92.58,34.65428991]
[1772640077114,9.98470915,92.63,92.58,34.65428991]
[1772640077290,10.79458975,92.639,92.581,4.49999999]
[1772640077490,20.0073934,92.646,92.581,4.49999999]
[1772640077491,20.0073934,92.646,92.582,4.49999999]
[1772640077913,20.0073934,92.646,92.584,4.49999999]
[1772640078813,0.14216157,92.645,92.584,4.49999999]
[1772640079122,3.69383402,92.682,92.583,81.00839245]
[1772640079123,140.7065117,92.711,92.587,4.49999999]
[1772640079300,9.98470915,92.7,92.592,4.49999999]
[1772640079498,9.98470915,92.7,92.594,4.49999999]
[1772640079701,54.41685892,92.711,92.586,3.69383402]
[1772640079702,9.98470915,92.71,92.597,4.78432313]
[1772640080012,27.45134243,92.711,92.611,4.78432313]
[1772640080207,16.66513584,92.711,92.612,4.82477569]
[1772640080398,16.66513584,92.711,92.625,4.49999999]
[1772640080604,10.78434544,92.727,92.632,4.49999999]
[1772640081215,9.98470915,92.74,92.634,4.49999999]
[1772640081418,10.78175749,92.75,92.641,4.78432313]
[1772640081608,10.78175749,92.75,92.647,4.78432313]
[1772640082217,26.94398175,92.786,92.656,4.49999999]
[1772640082398,9.98470915,92.75,92.669,4.49999999]
[1772640082714,4.82477569,92.785,92.669,4.49999999]
[1772640083019,9.98470915,92.74,92.669,4.49999999]
[1772640083225,9.98470915,92.78,92.67,0.28432314]
[1772640083405,9.98470915,92.78,92.671,4.49999999]
[1772640083721,3.69383402,92.783,92.671,4.49999999]
[1772640083897,9.98470915,92.78,92.671,4.49999999]
[1772640084411,9.98470915,92.78,92.67,0.28432314]
[1772640084412,37.72405393,92.779,92.676,4.49999999]
[1772640084794,0.14216157,92.778,92.676,4.49999999]
[1772640084997,0.28432314,92.778,92.676,4.49999999]
[1772640085317,0.28432314,92.739,92.676,4.49999999]
[1772640085521,220.95517302,92.779,92.672,37.76761049]
[1772640085522,0.28432314,92.715,92.672,10.79074585]
[1772640085713,0.28432314,92.709,92.659,10.79225979]
[1772640086309,3.69383402,92.747,92.637,43.17917192]
[1772640086310,0.28432314,92.719,92.64,3.69383402]
[1772640086503,0.14216157,92.723,92.637,43.17917192]
[1772640086709,0.28432314,92.719,92.637,43.17917192]
[1772640087105,9.98470915,92.72,92.636,37.78228766]
[1772640087303,0.28432314,92.707,92.636,37.78228766]